Cogmind - Beta 13 @@@ ROGUE MODE // 2024.07.02 @ 16:16:28 Player: maykstuff Result: Destroyed by Y-45 Defender with Beam Rifle Performance ------------- Evolutions (1) 500 Regions Visited (3) 600 Robots Destroyed (73) 365 Value Destroyed (2192) 2192 Prototype IDs (3) 60 Alien Tech Used (0) 0 Bonus (122) 122 TOTAL SCORE: 3839 Bonus ------- High Alert Combat Kills 122 Cogmind --------- Core Integrity 0/400 Matter 173/300 Energy 207/250 System Corruption 3% Temperature Cool (49) Movement Treading (160) Location -9/Mines Parts ------- > --- POWER (1) -------- Ion Engine > --- PROPULSION (4) --- Light Treads Light Treads (fused) > --- UTILITY (2) ------ Large Storage Unit Targeting Computer > --- WEAPON (2) ------- Advanced Beam Cannon Enhanced Flamer > --- INVENTORY (15) --- Medium Storage Unit Medium Storage Unit Large Storage Unit Large Matter Pod (150) Weight Redist. System Shield Generator EM Shotgun Advanced Beam Cannon Autogun Rocket Launcher Mining Laser Peak State ------------ > --- POWER ------------ Heavy Ion Engine > --- PROPULSION ------- Light Treads Light Treads Light Treads Light Treads > --- UTILITY ---------- Medium Storage Unit Weight Redist. System > --- WEAPON ----------- Minigun Minigun > --- INVENTORY -------- Light Treads Light Treads Wheel Huge Storage Unit EM Shotgun EM Shotgun Autogun [Rating: 17] Favorites ----------- Power Ion Engine Engine Ion Engine Power Core Light Nuclear Core Propulsion Light Treads Treads Light Treads Wheel Wheel Utility Medium Storage Unit Device Weight Redist. System Storage Medium Storage Unit Processor Targeting Computer Protection Light Armor Plating Weapon Minigun Energy Gun EM Shotgun Energy Cannon Advanced Beam Cannon Ballistic Gun Minigun Launcher Rocket Launcher Special Weapon Mining Laser Special Melee Weapon Datajack Build | -11 -10 -9 -9 ------- Run | Yrd Mat Mat Min Slots Evolved 2 | . . 2 . Power . | . . . . Propulsion 2 | . . 2 . Utility . | . . . . Weapon . | . . . . Parts Attached 61 | 6 10 41 4 Power 6 | 1 1 4 . Engine 5 | 1 . 4 . Core 1 | . 1 . . Reactor . | . . . . Propulsion 22 | 2 1 19 . Treads 18 | 2 1 15 . Leg . | . . . . Wheel 4 | . . 4 . Hover . | . . . . Flight . | . . . . Utility 12 | 1 4 7 . Device 2 | . . 2 . Storage 5 | 1 1 3 . Processor 2 | . . 2 . Hackware . | . . . . Protection 3 | . 3 . . Artifact . | . . . . Weapon 21 | 2 4 11 4 Energy Gun 5 | 1 . 4 . Energy Cannon 3 | . . 2 1 Ballistic Gun 9 | 1 3 5 . Ballistic Cannon . | . . . . Launcher 1 | . . . 1 Special Weapon 2 | . . . 2 Impact Weapon . | . . . . Slashing Weapon . | . . . . Piercing Weapon . | . . . . Special Melee Weapon 1 | . 1 . . Unidentified Prototypes 3 | . . 3 . Parts Lost 13 | . 2 9 2 Power 1 | . . 1 . Propulsion 6 | . 1 4 1 Utility 2 | . . 2 . Weapon 4 | . 1 2 1 Highest Loss Streak 4 | . 1 4 1 To Critical Strikes . | . . . . Average Slot Usage (%) 90 | . 95 91 76 Engine 9 | . 7 10 11 Core 2 | . 6 . . Treads 29 | . 27 34 23 Wheel 2 | . . 5 . Storage 12 | . 14 11 11 Processor 4 | . . 7 11 Protection 5 | . 13 . . Energy Gun 3 | . 4 3 3 Ballistic Gun 14 | . 17 16 . Launcher 1 | . . . 11 Special Melee Weapon 1 | . 3 . . Naked Turns . | . . . . Heaviest Build 32 | 12 23 32 32 Greatest Support 86 | 40 40 86 60 Greatest Overweight (x) 2 | . . 2 . Average Overweight (x) . | . . . . Largest Inventory Capacity 25 | 8 10 25 15 Average Capacity 10 | 7 9 10 15 Most Carried 11 | 7 10 10 11 Average Carried 9 | 4 9 9 10 Final Capacity 15 | 8 10 15 15 Final Carried 11 | 5 10 10 11 Class Distribution -------------------- 68% | Mutant 31% | Scavenger-Mutant Dominant Class ---------------- Mutant | -10/Materials Scavenger-Mutant | -9/Materials Mutant | -9/Mines Resources | -11 -10 -9 -9 ----------- Run | Yrd Mat Mat Min Matter Collected 2073 | 252 461 1210 150 Remotely 371 | . . 371 . Salvage Created 2632 | . 864 1419 349 Parts 161 | . 53 84 24 Haulers Intercepted 3 | . . 3 . Recyclers Shooed 2 | . . . 2 Parts Field Recycled . | . . . . Retrieved Matter . | . . . . Parts Self-Destructed . | . . . . Prevented . | . . . . Kills | -11 -10 -9 -9 ------- Run | Yrd Mat Mat Min Combat Hostiles Destroyed 58 | . 18 25 15 Guns 43 | . 17 25 1 AOE 15 | . 1 . 14 Classes Destroyed 10 | . 4 3 3 Worker 2 | . 1 1 . Tunneler 1 | . . . 1 Hauler 3 | . . 3 . Recycler 2 | . . . 2 Operator 2 | . 1 1 . Watcher 5 | . 3 2 . Swarmer 7 | . . . 7 Grunt 40 | . 18 15 7 Duelist 2 | . . 1 1 Sentry 9 | . . 9 . Best Kill Streak 11 | . 3 11 8 Combat Bots Only 9 | . 3 9 6 Max Kills in Single Turn 3 | . 2 2 3 Gunslinging 1 | . 1 . . Exploded 2 | . 1 . 2 Melee . | . . . . Uniques/NPCs Destroyed . | . . . . Combat | -11 -10 -9 -9 -------- Run | Yrd Mat Mat Min Hostile Shots Fired 337 | . 93 203 41 Missed 98 | . 24 60 14 Damage Taken 3189 | . 823 1989 377 Core 478 | . 72 347 59 Absorbed by Shields . | . . . . Core Remaining (%) 85 | 100 71 . . Volleys Fired 206 | . 79 103 24 Largest 2 | . 2 2 2 Hottest 148 | . 60 90 148 Shots Fired 348 | . 121 192 35 Gun 324 | . 121 192 11 Cannon 1 | . . . 1 Launcher 21 | . . . 21 Special 2 | . . . 2 Kinetic 285 | . 101 184 . Thermal 3 | . . . 3 Explosive 21 | . . . 21 Electromagnetic 39 | . 20 8 11 Robot Hit Streak 14 | . 14 12 10 Robot Miss Streak 3 | . 3 3 3 Penetration Max . | . . . . Secondary Targets 7 | . 3 4 . Max Gunslinging Chain 1 | . 1 1 . Shots Hit Robots 238 | . 86 125 27 Core Hits 114 | . 38 47 29 Critical Kills . | . . . . Critical Parts Destroyed 1 | . . 1 . Critical Strikes 1 | . . 1 . Destroy 1 | . . 1 . Melee Attacks 4 | . 4 . . Impact . | . . . . Slashing . | . . . . Piercing . | . . . . Sneak Attacks 3 | . 3 . . Combat Hostiles . | . . . . Follow-up Attacks . | . . . . Damage Inflicted 5242 | . 1282 2323 1637 Guns 3630 | . 1212 2290 128 Cannons 20 | . . . 20 Explosions 1532 | . 70 . 1462 Melee . | . . . . Ramming 39 | . . 33 6 Kinetic 3214 | . 1019 2195 . Thermal 172 | . 70 . 102 Explosive 1401 | . . . 1401 Electromagnetic 416 | . 193 95 128 Impact . | . . . . Slashing . | . . . . Piercing . | . . . . Highest Corruption 3 | . 1 3 3 Average Corruption 1 | . 1 1 3 Corruption Purged . | . . . . Corruption Blocked . | . . . . Effects 15 | . 4 3 8 Message Errors 3 | . 1 . 2 Matter Fused 3 | . . . 3 Heat Flow Errors 5 | . 1 2 2 Parts Fused 1 | . . . 1 Data Loss (minor) 2 | . 1 1 . Misfires 1 | . 1 . . Overload Shots . | . . . . Overflow Damage 33 | . 8 . 25 Projectiles . | . . . . Explosions 33 | . 8 . 25 Melee . | . . . . Knockbacks 1 | . . 1 . Impact 1 | . . 1 . Kinetic . | . . . . Secondary . | . . . . Self-Inflicted Damage 84 | . . . 84 Shots 3 | . . . 3 Rammed 8 | . . 6 2 Targets Rammed 9 | . . 7 2 Kicked . | . . . . Crushed 1 | . . 1 . Highest Temperature 228 | . 228 153 160 Average Temperature 35 | . 45 21 61 Received Heat Transfer 1368 | . 456 795 117 Effects 1 | . 1 . . Energy Bleed 1 | . 1 . . Siege Activations . | . . . . Robots Corrupted . | . . . . Combat Hostiles . | . . . . Parts Fried 2 | . . 2 . Impact Corruptions . | . . . . Robots Melted . | . . . . Combat Hostiles . | . . . . Parts Melted . | . . . . Heat Transferred 297 | . 100 . 197 Parts Sabotaged . | . . . . Parts Stolen . | . . . . Parts Stripped . | . . . . Power Chain Reactions 3 | . 2 . 1 Alert | -11 -10 -9 -9 ------- Run | Yrd Mat Mat Min Peak Influence 586 | . 235 500 586 Initial 132 | . . 44 132 Average 250 | . 96 329 459 Maximum Alert Level 2 | . 1 2 2 Low Security (%) 44 | 100 98 8 1 Level 1 40 | . 1 77 40 Level 2 14 | . . 13 58 Level 3 . | . . . . Level 4 . | . . . . Level 5 . | . . . . High Security . | . . . . Max Security . | . . . . Squads Dispatched 10 | . 5 5 . Investigation 4 | . 3 1 . Extermination . | . . . . Reinforcement 6 | . 2 4 . Assault . | . . . . Garrison . | . . . . Intercept . | . . . . Searches Triggered . | . . . . Construction Impeded . | . . . . Haulers Reinforced . | . . . . Active Scanning Responses . | . . . . Cargo Convoy Interrupts . | . . . . Stealth | -11 -10 -9 -9 --------- Run | Yrd Mat Mat Min Distress Signals 7 | . 2 5 . Communications Jammed . | . . . . Distress Signals . | . . . . Times Spotted 80 | . 24 39 17 Peak Tracking Total 9 | . 3 9 4 Tactical Retreats . | . . . . Traps | -11 -10 -9 -9 ------- Run | Yrd Mat Mat Min Traps Triggered 8 | . . 8 . Indirectly . | . . . . Trap Hack Attempts . | . . . . Triggered . | . . . . Disarmed 10 | . 10 . . Reprogrammed . | . . . . Reused . | . . . . Traps Extracted . | . . . . Installed . | . . . . Triggered . | . . . . Machines | -11 -10 -9 -9 ---------- Run | Yrd Mat Mat Min Machines Disabled 3 | . . 1 2 Max in Single Turn 1 | . . 1 1 Machines Repaired . | . . . . Machines Dismantled . | . . . . Machines Sabotaged . | . . . . Overloaded Fab Kills . | . . . . Hacking | -11 -10 -9 -9 --------- Run | Yrd Mat Mat Min Machines Accessed 13 | . 6 7 . Terminals 6 | . 4 2 . Fabricators . | . . . . Repair Stations 2 | . . 2 . Recycling Units 4 | . 2 2 . Scanalyzers 1 | . . 1 . Garrison Access . | . . . . Total Hacks 36 | . 20 16 . Successful 22 | . 11 11 . Failed 14 | . 9 5 . Catastrophic 2 | . 2 . . Database Lockouts . | . . . . Manual . | . . . . Terminals 17 | . 13 4 . Fabricators . | . . . . Repair Stations 4 | . . 4 . Recycling Units 13 | . 7 6 . Scanalyzers 2 | . . 2 . Garrison Access . | . . . . Terminal Hacks 12 | . 9 3 . Branch Access Points 1 | . . 1 . Emergency Access Points 1 | . 1 . . Locate Traps 3 | . 3 . . Disarm Traps 2 | . 2 . . Dispatch Records 1 | . 1 . . Hauler Manifests 2 | . 1 1 . Zone Layout 2 | . 1 1 . Fabricator Hacks . | . . . . Repair Station Hacks 1 | . . 1 . Scan Component 1 | . . 1 . Recycling Unit Hacks 7 | . 2 5 . Process 1 | . . 1 . Report Inventory 4 | . 2 2 . Retrieve Matter 1 | . . 1 . Retrieve Components 1 | . . 1 . Scanalyzer 2 | . . 2 . Insert Component 1 | . . 1 . Analyze 1 | . . 1 . Garrison Access Hacks . | . . . . Unauthorized Hacks . | . . . . Terminals . | . . . . Fabricators . | . . . . Repair Stations . | . . . . Recycling Units . | . . . . Scanalyzers . | . . . . Garrison Access . | . . . . Data Cores Recovered . | . . . . Used . | . . . . Hacking Detections 9 | . 6 3 . Full Trace Events 5 | . 4 1 . Feedback Events 1 | . 1 . . Corruption 1 | . 1 . . Feedback Blocked . | . . . . Robot Schematics Acquired . | . . . . Robots Built . | . . . . Authchips . | . . . . Time . | . . . . Total Robot Build Rating . | . . . . Part Schematics Acquired 1 | . . 1 . Parts Built . | . . . . Authchips . | . . . . Time . | . . . . Total Part Build Rating . | . . . . Parts Repaired . | . . . . Time . | . . . . Parts Recycled . | . . . . Recycled Matter 27 | . . 27 . Retrieved Matter 27 | . . 27 . Retrieved Components 9 | . . 9 . Parts Scanalyzed 1 | . . 1 . Part Schematics Acquired 1 | . . 1 . Parts Damaged . | . . . . Bothacking | -11 -10 -9 -9 ------------ Run | Yrd Mat Mat Min Used RIF Installer . | . . . . Robots Hacked 2 | . 2 . . Non-combat 2 | . 2 . . Combat . | . . . . Robot Hacks Applied 2 | . 2 . . parse_system 1 | . 1 . . no_distress 1 | . 1 . . Relay Couplers Released . | . . . . Fabnet Peak Effective % . | . . . . Robots Rewired . | . . . . Allies Hacked . | . . . . Hacks Repelled . | . . . . Allies | -11 -10 -9 -9 -------- Run | Yrd Mat Mat Min Total Allies 1 | . . . 1 Largest Group 1 | . . . 1 Highest-Rated Group 31 | . . . 31 Highest-Rated Ally 31 | . . . 31 Total Orders . | . . . . Ally Attacks 4 | . . . 4 Total Damage 65 | . . . 65 Kills . | . . . . Allies Corrupted . | . . . . Allies Melted . | . . . . Intel | -11 -10 -9 -9 ------- Run | Yrd Mat Mat Min Robot Analysis Total . | . . . . Derelict Logs Recovered . | . . . . Drone Launches . | . . . . Drone Recoveries . | . . . . Exploration | -11 -10 -9 -9 ------------- Run | Yrd Mat Mat Min Turns Passed 3497 | 122 1317 1521 537 Spaces Moved 1788 | 68 668 760 292 Core 4 | 4 . . . Treads 1703 | 64 668 679 292 Legs . | . . . . Wheels 81 | . . 81 . Hover . | . . . . Flight . | . . . . Fastest Speed 50 | 50 160 86 160 Average Speed 156 | 153 160 152 160 Slowest Speed 160 | 160 160 160 160 Overloaded Moves . | . . . . Propulsion Burnouts . | . . . . Robots Hopped . | . . . . Cave-ins Triggered . | . . . . Exploration Rate (%) 53 | 5 75 71 61 Regions Visited 3 Branch Regions 1 Pre-discovered Areas . | . . . . Known Exits Taken 1 | . . 1 . Unknown Exits Taken 2 | 1 1 . . Scrap Searched . | . . . . Spaces Dug . | . . . . Terrain Destroyed 134 | . 8 . 126 Melee . | . . . . Projectile . | . . . . AOE 134 | . 8 . 126 Terrain Rammed . | . . . . Walls Destroyed . | . . . . Machines Disabled . | . . . . Actions | -11 -10 -9 -9 --------- Run | Yrd Mat Mat Min Total 2186 | 86 810 965 325 Wait 35 | 2 24 8 1 Move 1785 | 67 667 759 292 Hop . | . . . . Pick Up 61 | 11 15 33 2 Fast Attach 6 | . 2 4 . Attach 36 | 6 4 25 1 Detach 2 | . . 2 . Swap 19 | . 4 12 3 Drop 23 | . 11 12 . Fire 206 | . 79 103 24 Melee 4 | . 4 . . Ram . | . . . . Kick . | . . . . Crush 9 | . . 7 2 Escape Stasis . | . . . . Rewire . | . . . . Trap . | . . . . Miscellaneous . | . . . . Route ------- -11/Scrapyard -10/Materials (discovered 4 exits: *Mat x3 / [*Min]) -9/Materials (discovered 3 exits: [*Mat] / *Min x2) -9/Mines History --------- Turn | Location | Event 15 | -11/Scrapyard | Discovered new exit (range 16) 123 | -11/Scrapyard | Entered Materials 313 | -10/Materials | Build established: Mutant 433 | -10/Materials | Discovered new exit (range 8) 654 | -10/Materials | Discovered new exit (range 5) 943 | -10/Materials | Discovered new exit (range 12) 1071 | -10/Materials | Discovered new exit (range 7) 1440 | -10/Materials | Entered another Materials area 1440 | -9/Materials | Evolved 2 slots: Propulsion x2 1547 | -9/Materials | Discovered new exit (range 9) 1644 | -9/Materials | Lost 4 parts (3n1w) 1667 | -9/Materials | Destroyed 9 combat bots 1779 | -9/Materials | Lost 4 parts (1p1n1u1w) 1841 | -9/Materials | Discovered new exit (range 16) 2038 | -9/Materials | Identified exit to Mines 2208 | -9/Materials | Build established: Scavenger-Mutant 2265 | -9/Materials | Core integrity fell below 50% 2627 | -9/Materials | Core integrity fell below 20% 2961 | -9/Materials | Entered Mines 3203 | -9/Mines | Received a Mining Laser from a helpful Derelict 3301 | -9/Mines | A weapon hastily lodged in a ceiling crevice suddenly fell to the ground 3304 | -9/Mines | Build established: Mutant 3498 | -9/Mines | Destroyed by Y-45 Defender with Beam Rifle Last Messages --------------- U-05 Engineer lays Concrete. U-05 Engineer builds a Wall. U-05 Engineer lays Concrete. U-05 Engineer builds a Wall. U-05 Engineer lays Concrete. U-05 Engineer builds a Wall. System corrupted: Matter fused (-5). An Enh. Flamer has been hastily shoved under some rubble with a note attached: "One is never enough." Acquired Enh. Flamer. System corrupted: Matter fused (-8). Slammed into T-07 Excavator. Slammed into K-01 Serf. U-05 Engineer lays Concrete. System corrupted: Heat flow error (+174). U-05 Engineer builds a Wall. U-05 Engineer lays Concrete. FJJLIHGOG KD7QNJSORTU P W%Q O=XG40OR3 |U Machine disabled. Map ----- +----------------------------------------------------+ | | | | | | | | | | | | | | | | | | | | | | | | | | | | | ??????????????????????????????????? | | ??????????????????????????????????? | | ??????????????????????????????????? | | ??????????????????????????????????? | | ??????????????????????????????????? | | ????????####??###???##????????????? | | ??????## ### ##?## #?####??????? | | ?????## #?# # ##?????? | | ###?## ### # #?????? | | # ### ## Y #?????? | | #?# [| ##????? | | #???#!/ @ ###??? | | ### #???#"" Y ##?? | | ### ##??##" ## g #?? | | # # #???##??## #?? | | # # #????????# #?? | | ## ##???????# #?? | | # ### ########## #?? | | # ## ## ##?? | | #?# ##??? | | ###???########## #???? | | #% ###??????????### ##??? | | # ####????????## #??? | | ####?????### #??? | | ###????## ##??? | | ####### #???? | | #???? | | ### ## #???? | | ??## # ######### #### #???? | | ???### # # #????# #??# #???? | | ????## # # #####?# ##?# #???? | | ?##### #### #?# ?? #???? | | ## ## ### #?# ##?## ???? | | # ## #?# #???# #??? | | ### ### #???# #??? | | ## # #???## ##??? | +----------------------------------------------------+ Best States ------------- Heat Dissipation 28 Energy Generation 14 Energy Capacity 280 Matter Stores 300 Matter Capacity 300 Sight Range 16 Terrain Scan Density 10 Additional Mass Support 6 Armor Coverage 150 Evasion (%) 42 Targeting Accuracy 5 Recoil Reduction 4 Item Schematics ----------------- Minigun | -9/Materials | Scanalyzed Robot Schematics ------------------ None Fabricated ------------ Nothing Alien Tech Used ----------------- None Achievements -------------- None Challenges ------------ None Game ------ Seed FlakFortressCompressor Manual? 0 Play Time 00:31:21 Cumulative 4.0 hours Start 2024.07.02 @ 15:43:37 End 2024.07.02 @ 16:16:28 Sessions 1 Manual Loads 0 Difficulty Rogue Special Mode None Game No. 5 Rogue 5 Adventurer 0 Explorer 0 Win Type - Total 0 Types 0/0/0/0/0/0/0/0/0 Lore% 9 Gallery% 8 Achievement% 11 Wizard Run 0 Options --------- Layout 1 ASCII 1 Keyboard 0 Movement Numpad Keybinds 0 Fullscreen 1 Font 24/Proggy Map View 50x35 Zoom Use 0% Tactical HUD 0 Map Filters NONE Filters NONE Steam 0 RUN: 2f317af6-4452-4c35-9b02-e39d30459e04